fUSD/lending_fUSD_20250314
["ID","MTS","AMOUNT","RATE_DAILY","PERIOD"]
[356151289,1741974643183,-1761.053126,0.0001,2]
[356151290,1741974643192,-1761.053126,0.0001,2]
[356151291,1741974643202,-1761.053126,0.0001,2]
[356151292,1741974643211,-1761.053126,0.0001,2]
[356151293,1741974643221,-151.0,0.0001,2]
[356151294,1741974643231,-151.0,0.0001,2]
[356151295,1741974643240,-151.0,0.0001,2]
[356151296,1741974643250,-300.0,0.0001,3]
[356151297,1741974643260,-151.0,0.0001,2]
[356151298,1741974643269,-151.0,0.0001,2]
[356151299,1741974643279,-151.0,0.0001,2]
[356151300,1741974643288,-151.858561,0.0001,2]
[356151301,1741974643298,-217.274444,0.0001,2]
[356151302,1741974643307,-217.274444,0.0001,2]
[356151303,1741974643316,-217.274444,0.0001,2]
[356151304,1741974643325,-217.274444,0.0001,2]
[356151305,1741974643335,-217.274444,0.0001,2]
[356151306,1741974643344,-217.274444,0.0001,2]
[356151307,1741974643353,-151.0,0.0001,2]
[356151308,1741974643362,-151.0,0.0001,2]
[356151309,1741974643371,-151.0,0.0001,2]
[356151310,1741974643380,-151.0,0.0001,2]
[356151311,1741974643389,-153.157349,0.0001,2]
[356151312,1741974643398,-15379.8423447,0.0001,2]
[356151313,1741974643407,-152.348406,0.0001,2]
[356151314,1741974643416,-265.686549,0.0001,2]
[356151315,1741974643425,-265.686549,0.0001,2]
[356151316,1741974643435,-265.686549,0.0001,2]
[356151317,1741974643444,-152.847207,0.0001,2]
[356151318,1741974643454,-265.686549,0.0001,2]
[356151319,1741974643464,-265.686549,0.0001,2]
[356151320,1741974643473,-265.686549,0.0001,2]
[356151321,1741974643483,-151.0,0.0001,2]
[356151322,1741974643492,-152.545247,0.0001,2]
[356151323,1741974643501,-400.50452733,0.0001,2]
[356151324,1741974643510,-151.0,0.0001,2]
[356151325,1741974643520,-151.0,0.0001,2]
[356151326,1741974643529,-172.644414,0.0001,2]
[356151327,1741974643538,-46351.83113387,0.0001,2]
[356151328,1741974643547,-151.0,0.0001,2]
[356151329,1741974643556,-151.0,0.0001,2]
[356151330,1741974643566,-767.7475074,0.0001,2]
[356151331,1741974643575,-151.0,0.0001,2]
[356151332,1741974643584,-372.150392,0.0001,2]
[356151333,1741974643593,-372.150392,0.0001,2]
[356151334,1741974643602,-372.150392,0.0001,2]
[356151335,1741974643611,-151.0,0.0001,2]
[356151336,1741974643620,-151.0,0.0001,2]
[356151337,1741974643630,-372.150392,0.0001,2]
[356151338,1741974643639,-151.0,0.0001,2]
[356151339,1741974643648,-372.150392,0.0001,2]
[356151340,1741974643657,-372.150392,0.0001,2]
[356151341,1741974643667,-151.0,0.0001,2]
[356151342,1741974643677,-151.217342,0.0001,2]
[356151343,1741974643687,-5852.2466195,0.0001,2]
[356151345,1741974643697,-5852.2466195,0.0001,2]
[356151347,1741974643708,-5852.2466195,0.0001,2]
[356151349,1741974643717,-151.0,0.0001,2]
[356151351,1741974643726,-151.0,0.0001,2]
[356151353,1741974643735,-151.0,0.0001,2]
[356151355,1741974643744,-3973.43180741,0.0001,2]
[356151357,1741974643754,-151.0,0.0001,2]
[356151358,1741974643763,-151.0,0.0001,2]
[356151361,1741974643772,-151.0,0.0001,2]
[356151363,1741974643782,-500.0,0.00010007,2]
[356151365,1741974643793,-210.01,0.00010013,2]
[356151367,1741974643802,-500.0,0.00010034,2]
[356151369,1741974643811,-151.0,0.00010038,2]
[356151371,1741974643820,-151.0,0.00010038,2]
[356151373,1741974643829,-372.150392,0.00010038,2]
[356151374,1741974643839,-160.053788,0.00010038,2]
[356151376,1741974643848,-372.150392,0.00010038,2]
[356151378,1741974643861,-210.01,0.00010038,2]
[356151380,1741974643870,-500.0,0.00010061,2]
[356151382,1741974643880,-210.01,0.00010064,2]
[356151384,1741974643889,-200.0,0.0001008,2]
[356151386,1741974643899,-200.0,0.0001008,2]
[356151388,1741974643910,-283.29268378,0.00010089,2]
[356151390,1741974643919,-210.01,0.00010089,2]
[356151392,1741974643928,-249.74086735,0.000101,2]
[356151394,1741974643938,-150.0,0.000101,2]
[356151396,1741974643948,-200.0,0.000101,2]
[356151398,1741974643959,-150.0,0.000101,2]
[356151399,1741974643969,-200.0,0.000101,2]
[356151400,1741974643979,-1897.0,0.000101,2]
[356151401,1741974643988,-1009.75,0.00010101,2]
[356151402,1741974643998,-210.01,0.00010115,2]
[356151403,1741974644008,-659.74598092,0.00010136,2]
[356151404,1741974644017,-210.01,0.0001014,2]
[356151405,1741974644027,-210.01,0.00010165,2]
[356151406,1741974644036,-200.0,0.00010181,2]
[356151407,1741974644046,-200.0,0.00010201,2]
[356151408,1741974644056,-200.0,0.00010201,2]
[356151409,1741974644066,-421.1615227,0.00010214,2]
[356151410,1741974644077,-2498.37,0.00010273,2]
[356151411,1741974644087,-200.0,0.00010282,2]
[356151412,1741974644096,-151.0,0.000103,2]
[356151413,1741974644106,-5548.0,0.000103,3]
[356151414,1741974644115,-200.0,0.00010303,2]
[356151415,1741974644126,-200.0,0.00010303,2]
[356151416,1741974644135,-173.43,0.00010322,2]
[356151417,1741974644145,-200.0,0.00010385,2]
[356151418,1741974644154,-151.0,0.000104,2]
[356151419,1741974644164,-200.0,0.00010406,2]
[356151420,1741974644174,-200.0,0.00010406,2]
[356151421,1741974644185,-1313.35,0.00010416,2]
[356151422,1741974644196,-700.0,0.00010465,2]
[356151423,1741974644206,-368.0,0.000105,2]
[356151424,1741974644216,-237.89104726,0.0001054,2]
[356151425,1741974644226,-500.0,0.0001054,2]
[356151426,1741974644235,-151.0,0.00010547,2]
[356151427,1741974644244,-2498.37,0.00010547,2]
[356151428,1741974644254,-156.587,0.00010548,2]
[356151429,1741974644265,-150.0,0.0001056,2]
[356151430,1741974644275,-550.0,0.0001056,2]
[356151431,1741974644285,-550.0,0.0001056,2]
[356151432,1741974644295,-150.0,0.0001056,2]
[356151433,1741974644304,-502.70108934,0.00010567,2]
[356151434,1741974644314,-5548.0,0.000106,5]
[356151435,1741974644324,-292.64,0.00010615,2]
[356151436,1741974644334,-421.1615227,0.00010623,2]
[356151437,1741974644344,-166.66,0.00010648,2]
[356151438,1741974644353,-150.0,0.00010699,2]
[356151439,1741974644362,-550.0,0.00010699,2]
[356151440,1741974644372,-257.87135429,0.000107,2]
[356151441,1741974644382,-750.0,0.000107,2]
[356151442,1741974644391,-232.0,0.000107,2]
[356151443,1741974644401,-1000.0,0.00010744,2]
[356151444,1741974644411,-151.0,0.00010758,2]
[356151445,1741974644421,-151.0,0.00010758,2]
[356151446,1741974644430,-298.5756,0.00010758,2]
[356151447,1741974644439,-298.5756,0.00010758,2]
[356151448,1741974644449,-255.0,0.00010768,2]
[356151449,1741974644460,-987.88331581,0.000108,2]
[356151450,1741974644469,-281.869838,0.00010821,2]
[356151451,1741974644479,-281.869838,0.00010821,2]
[356151452,1741974644488,-2498.37,0.00010821,2]
[356151453,1741974644497,-173.43,0.00010834,2]
[356151454,1741974644507,-421.1615227,0.00010847,2]
[356151455,1741974644516,-151.0,0.000109,2]
[356151456,1741974644526,-151.0,0.000109,2]
[356151457,1741974644536,-151.0,0.000109,2]
[356151458,1741974644546,-396.048925,0.000109,2]
[356151459,1741974644555,-396.048925,0.000109,2]
[356151460,1741974644565,-151.0,0.000109,2]
[356151461,1741974644575,-163.397605,0.000109,2]
[356151462,1741974644584,-163.397605,0.000109,2]
[356151463,1741974644594,-300.0,0.000109,3]
[356151464,1741974644604,-151.0,0.000109,2]
[356151465,1741974644614,-200.0,0.00010959,2]
[356151466,1741974644624,-200.0,0.00010959,2]
[356151467,1741974644633,-200.0,0.00010959,2]
[356151468,1741974644642,-200.0,0.00010959,2]
[356151469,1741974644651,-200.0,0.00010959,2]
[356151470,1741974644661,-189.97,0.00010959,2]
[356151471,1741974644671,-8864.96,0.00010959,2]
[356151472,1741974644681,-822.89,0.00010959,2]
[356151473,1741974644691,-438.57,0.00010959,2]
[356151474,1741974644702,-365.47,0.00010959,2]
[356151475,1741974644711,-150.0,0.00010959,2]
[356151476,1741974644721,-304.56,0.00010959,2]
[356151477,1741974644730,-253.8,0.00010959,2]
[356151478,1741974644740,-211.5,0.00010959,2]
[356151479,1741974644750,-176.25,0.00010959,2]
[356151480,1741974644759,-881.27,0.00010959,2]
[356151481,1741974644769,-151.0,0.00010959,2]
[356151482,1741974644778,-151.0,0.00010959,2]
[356151483,1741974644788,-1761.053126,0.00010959,2]
[356151484,1741974644798,-1761.053126,0.00010959,2]
[356151485,1741974644807,-152.394977,0.00010959,2]
[356151486,1741974644817,-151.0,0.00010959,2]
[356151487,1741974644827,-217.274444,0.00010959,2]
[356151488,1741974644836,-217.274444,0.00010959,2]
[356151489,1741974644846,-265.686549,0.00010959,2]
[356151490,1741974644858,-265.686549,0.00010959,2]
[356151491,1741974644868,-800.0,0.00011,2]
[356151492,1741974644877,-300.0,0.00011,2]
[356151493,1741974644887,-421.1615227,0.00011027,2]
[356151494,1741974644897,-300.0,0.0001109,2]
[356151495,1741974644907,-666.0,0.0001109,2]
[356151496,1741974644916,-300.0,0.0001109,2]
[356151497,1741974644926,-300.0,0.0001109,2]
[356151498,1741974644937,-666.0,0.0001109,2]
[356151499,1741974644946,-151.0,0.00011091,2]
[356151500,1741974644957,-151.0,0.00011091,2]
[356151501,1741974644967,-151.0,0.00011091,2]
[356151502,1741974644976,-151.0,0.00011091,2]
[356151503,1741974644987,-552.3007885,0.00011091,2]
[356151504,1741974644996,-458.2221551,0.00011091,2]
[356151505,1741974645006,-2313.7410415,0.00011091,2]
[356151506,1741974645015,-1919.6195776,0.00011091,2]
[356151507,1741974645026,-1525.4981137,0.00011091,2]
[356151508,1741974645036,-1131.3766498,0.00011091,2]
[356151509,1741974645045,-1970.4763016,0.00011091,2]
[356151510,1741974645055,-1635.5258658,0.00011091,2]
[356151511,1741974645065,-1300.5754299,0.00011091,2]
[356151512,1741974645074,-965.6249941,0.00011091,2]
[356151513,1741974645265,-1442.3355716,0.00011091,2]
[356151514,1741974645275,-1197.1608755,0.00011091,2]
[356151515,1741974645284,-951.9861795,0.00011091,2]
[356151516,1741974645294,-706.8114834,0.00011091,2]
[356151517,1741974645303,-8641.3049951,0.00011091,2]
[356151518,1741974645312,-7163.9918932,0.00011091,2]
[356151519,1741974645322,-5686.6787913,0.00011091,2]
[356151520,1741974645331,-4209.3656894,0.00011091,2]
[356151521,1741974645341,-2498.37,0.00011095,2]
[356151522,1741974645351,-162.380719,0.00011096,2]
[356151523,1741974645360,-300.0,0.00011098,2]
[356151524,1741974645370,-300.0,0.00011098,2]
[356151525,1741974645379,-300.0,0.00011098,2]
[356151526,1741974645388,-300.0,0.00011098,2]
[356151527,1741974645398,-300.0,0.00011098,2]
[356151528,1741974645407,-300.0,0.00011098,2]
[356151529,1741974645417,-666.0,0.00011098,2]
[356151530,1741974645426,-300.0,0.00011098,2]
[356151531,1741974645436,-222.99863543,0.00011098,2]
[356151532,1741974645446,-300.0,0.00011098,2]
[356151533,1741974645456,-300.0,0.00011098,2]
[356151534,1741974645466,-300.0,0.00011098,2]
[356151535,1741974645475,-300.0,0.00011098,2]
[356151536,1741974645484,-300.0,0.00011098,2]
[356151537,1741974645494,-300.0,0.00011098,2]
[356151538,1741974645503,-666.0,0.00011098,2]
[356151539,1741974645512,-300.0,0.00011098,2]
[356151540,1741974645522,-300.0,0.00011098,2]
[356151541,1741974645531,-300.0,0.00011098,2]
[356151542,1741974645541,-300.0,0.00011098,2]
[356151543,1741974645551,-300.0,0.00011098,2]
[356151544,1741974645560,-300.0,0.00011098,2]
[356151545,1741974645569,-300.0,0.00011098,2]
[356151546,1741974645579,-300.0,0.00011098,2]
[356151547,1741974645589,-300.0,0.00011098,2]
[356151548,1741974645598,-125082.31929409,0.00011099,2]
[356151549,1741974645609,-125082.31929409,0.00011099,2]
[356151550,1741974645619,-125082.31929409,0.00011099,2]
[356151551,1741974645629,-151.0,0.00011099,2]
[356151552,1741974645639,-281.869838,0.00011099,2]
[356151553,1741974645648,-281.869838,0.00011099,2]
[356151554,1741974645658,-151.0,0.00011099,2]
[356151555,1741974645667,-151.0,0.00011099,2]
[356151556,1741974645676,-151.0,0.00011099,2]
[356151557,1741974645685,-151.0,0.00011099,2]
[356151558,1741974645695,-261.815364,0.00011099,2]
[356151559,1741974645704,-151.151543,0.00011099,2]
[356151560,1741974645714,-151.0,0.00011099,2]
[356151561,1741974645723,-151.0,0.00011099,2]
[356151562,1741974645732,-151.0,0.00011099,2]
[356151563,1741974645741,-248.990661,0.00011099,2]
[356151564,1741974645750,-151.0,0.00011099,2]
[356151565,1741974645759,-151.0,0.00011099,2]
[356151566,1741974645769,-151.0,0.00011099,2]
[356151567,1741974645779,-151.0,0.00011099,2]
[356151568,1741974645788,-151.0,0.00011099,2]
[356151569,1741974645797,-151.0,0.00011099,2]
[356151570,1741974645807,-151.0,0.00011099,2]
[356151571,1741974645816,-262.848612,0.00011099,2]
[356151572,1741974645825,-192.47559,0.00011099,2]
[356151573,1741974645835,-151.0,0.00011099,2]
[356151574,1741974645844,-151.0,0.00011099,2]
[356151575,1741974645855,-151.0,0.00011099,2]
[356151576,1741974645866,-151.0,0.00011099,2]
[356151577,1741974645876,-151.0,0.00011099,2]
[356151579,1741974645885,-151.0,0.00011099,2]
[356151580,1741974645895,-151.0,0.00011099,2]
[356151581,1741974645904,-151.0,0.00011099,2]
[356151582,1741974645913,-151.0,0.00011099,2]
[356151583,1741974645923,-151.0,0.00011099,2]
[356151584,1741974645934,-151.0,0.00011099,2]
[356151585,1741974645944,-239.359977,0.00011099,2]
[356151586,1741974645955,-396.048925,0.00011099,2]
[356151587,1741974645964,-396.048925,0.00011099,2]
[356151588,1741974645975,-396.048925,0.00011099,2]
[356151589,1741974645984,-396.048925,0.00011099,2]
[356151590,1741974645993,-396.048925,0.00011099,2]
[356151591,1741974646003,-396.048925,0.00011099,2]
[356151592,1741974646013,-396.048925,0.00011099,2]
[356151593,1741974646022,-396.048925,0.00011099,2]
[356151594,1741974646032,-396.048925,0.00011099,2]
[356151595,1741974646041,-396.048925,0.00011099,2]
[356151596,1741974646051,-396.048925,0.00011099,2]
[356151597,1741974646061,-396.048925,0.00011099,2]
[356151598,1741974646070,-151.0,0.00011099,2]
[356151599,1741974646080,-154.809188,0.00011099,2]
[356151600,1741974646090,-202.11331,0.00011099,2]
[356151601,1741974646099,-202.11331,0.00011099,2]
[356151603,1741974646109,-202.11331,0.00011099,2]
[356151605,1741974646119,-202.11331,0.00011099,2]
[356151606,1741974646129,-202.11331,0.00011099,2]
[356151608,1741974646139,-202.11331,0.00011099,2]
[356151610,1741974646148,-202.11331,0.00011099,2]
[356151611,1741974646158,-202.11331,0.00011099,2]
[356151613,1741974646168,-202.11331,0.00011099,2]
[356151615,1741974646177,-202.11331,0.00011099,2]
[356151616,1741974646187,-202.11331,0.00011099,2]
[356151617,1741974646196,-202.11331,0.00011099,2]
[356151618,1741974646207,-202.11331,0.00011099,2]
[356151619,1741974646216,-202.113308,0.00011099,2]
[356151620,1741974646226,-218.165419,0.00011099,2]
[356151621,1741974646235,-151.0,0.00011099,2]
[356151622,1741974646245,-151.0,0.00011099,2]
[356151623,1741974646255,-163.397605,0.00011099,2]
[356151624,1741974646264,-163.397605,0.00011099,2]
[356151625,1741974646274,-163.397605,0.00011099,2]
[356151626,1741974646283,-163.397605,0.00011099,2]
[356151627,1741974646293,-163.397605,0.00011099,2]
[356151628,1741974646303,-163.397605,0.00011099,2]
[356151629,1741974646313,-163.397605,0.00011099,2]
[356151630,1741974646322,-163.397605,0.00011099,2]
[356151631,1741974646332,-163.397605,0.00011099,2]
[356151632,1741974646342,-163.397605,0.00011099,2]
[356151633,1741974646351,-163.397605,0.00011099,2]
[356151634,1741974646361,-298.5756,0.00011099,2]
[356151635,1741974646371,-836.18038,0.00011099,2]
[356151636,1741974646381,-298.5756,0.00011099,2]
[356151637,1741974646391,-836.18038,0.00011099,2]
[356151638,1741974646401,-836.18038,0.00011099,2]
[356151639,1741974646410,-836.18038,0.00011099,2]
[356151640,1741974646420,-836.18038,0.00011099,2]
[356151641,1741974646430,-836.18038,0.00011099,2]
[356151642,1741974646439,-836.18038,0.00011099,2]
[356151643,1741974646449,-151.0,0.00011099,2]
[356151644,1741974646459,-298.5756,0.00011099,2]
[356151645,1741974646468,-836.18038,0.00011099,2]
[356151646,1741974646478,-298.5756,0.00011099,2]
[356151647,1741974646487,-836.18038,0.00011099,2]
[356151648,1741974646497,-836.18038,0.00011099,2]
[356151649,1741974646506,-836.18038,0.00011099,2]
[356151650,1741974646516,-836.18038,0.00011099,2]
[356151651,1741974646526,-836.18038,0.00011099,2]
[356151653,1741974646535,-836.180385,0.00011099,2]
[356151655,1741974646545,-151.0,0.00011099,2]
[356151657,1741974646555,-151.0,0.00011099,2]
[356151659,1741974646564,-151.0,0.00011099,2]
[356151661,1741974646574,-151.0,0.00011099,2]
[356151663,1741974646583,-151.0,0.00011099,2]
[356151665,1741974646593,-218.66204,0.00011099,2]
[356151667,1741974646603,-151.0,0.00011099,2]
[356151669,1741974646612,-151.0,0.00011099,2]
[356151671,1741974646622,-151.0,0.00011099,2]
[356151673,1741974646632,-151.0,0.00011099,2]
[356151674,1741974646642,-151.0,0.00011099,2]
[356151675,1741974646652,-151.0,0.00011099,2]
[356151676,1741974646661,-151.0,0.00011099,2]
[356151677,1741974646670,-184.018961,0.00011099,2]
[356151678,1741974646680,-1761.053126,0.00011099,2]
[356151679,1741974646689,-1761.053126,0.00011099,2]
[356151680,1741974646699,-1761.053126,0.00011099,2]
[356151681,1741974646710,-1761.053126,0.00011099,2]
[356151682,1741974646720,-1761.053126,0.00011099,2]
[356151683,1741974646729,-1761.053126,0.00011099,2]
[356151684,1741974646739,-1761.053126,0.00011099,2]
[356151685,1741974646748,-1761.053126,0.00011099,2]
[356151686,1741974646758,-1761.053126,0.00011099,2]
[356151687,1741974646768,-1761.053126,0.00011099,2]
[356151688,1741974646777,-1761.053126,0.00011099,2]
[356151689,1741974646787,-1761.053126,0.00011099,2]
[356151690,1741974646796,-151.0,0.00011099,2]
[356151691,1741974646806,-151.0,0.00011099,2]
[356151692,1741974646816,-151.0,0.00011099,2]
[356151693,1741974646825,-225.108148,0.00011099,2]
[356151694,1741974646835,-217.274444,0.00011099,2]
[356151695,1741974646844,-217.274444,0.00011099,2]
[356151696,1741974646855,-217.274444,0.00011099,2]
[356151697,1741974646867,-217.274444,0.00011099,2]
[356151698,1741974646876,-217.274444,0.00011099,2]
[356151699,1741974646885,-217.274444,0.00011099,2]
[356151700,1741974646895,-217.274444,0.00011099,2]
[356151701,1741974646905,-217.274444,0.00011099,2]
[356151702,1741974646915,-217.274444,0.00011099,2]
[356151703,1741974646924,-217.274444,0.00011099,2]
[356151704,1741974646934,-217.274444,0.00011099,2]
[356151705,1741974646944,-217.274448,0.00011099,2]
[356151706,1741974646955,-151.0,0.00011099,2]
[356151707,1741974646965,-282.869068,0.00011099,2]
[356151708,1741974646974,-265.686549,0.00011099,2]
[356151709,1741974646984,-265.686549,0.00011099,2]
[356151710,1741974646994,-265.686549,0.00011099,2]
[356151711,1741974647003,-265.686549,0.00011099,2]
[356151712,1741974647013,-265.686549,0.00011099,2]
[356151713,1741974647024,-265.686549,0.00011099,2]
[356151714,1741974647034,-265.686549,0.00011099,2]
[356151715,1741974647044,-265.686549,0.00011099,2]
[356151716,1741974647053,-265.686549,0.00011099,2]
[356151717,1741974647063,-265.686549,0.00011099,2]
[356151718,1741974647073,-265.686549,0.00011099,2]
[356151719,1741974647083,-265.686545,0.00011099,2]
[356151720,1741974647094,-151.0,0.00011099,2]
[356151721,1741974647104,-151.0,0.00011099,2]
[356151722,1741974647113,-372.150392,0.00011099,2]
[356151723,1741974647123,-151.0,0.00011099,2]
[356151724,1741974647132,-372.150392,0.00011099,2]
[356151725,1741974647142,-151.0,0.00011099,2]
[356151726,1741974647151,-372.150392,0.00011099,2]
[356151727,1741974647160,-151.0,0.00011099,2]
[356151728,1741974647170,-372.150392,0.00011099,2]
[356151729,1741974647180,-151.0,0.00011099,2]
[356151730,1741974647189,-372.150392,0.00011099,2]
[356151731,1741974647199,-372.150392,0.00011099,2]
[356151732,1741974647209,-372.150392,0.00011099,2]
[356151733,1741974647223,-372.150392,0.00011099,2]
[356151734,1741974647239,-372.150392,0.00011099,2]
[356151735,1741974647249,-372.150392,0.00011099,2]
[356151736,1741974647259,-372.150392,0.00011099,2]
[356151737,1741974647269,-372.150388,0.00011099,2]
[356151738,1741974647279,-151.0,0.00011099,2]
[356151739,1741974647289,-151.0,0.00011099,2]
[356151740,1741974647299,-179.489923,0.00011099,2]
[356151741,1741974647308,-1009.75,0.00011223,2]
[356151742,1741974647319,-163.65,0.00011336,2]
[356151743,1741974647329,-2498.37,0.00011369,2]
[356151744,1741974647339,-421.1615227,0.00011412,2]
[356151745,1741974647348,-2751.0,0.00011507,2]
[356151746,1741974647358,-2498.37,0.00011643,2]
[356151747,1741974647367,-168.3888056,0.00011644,2]
[356151748,1741974647376,-151.0,0.00011699,2]
[356151749,1741974647386,-281.869838,0.00011699,2]
[356151750,1741974647395,-281.869838,0.00011699,2]
[356151751,1741974647405,-151.0,0.00011699,2]
[356151752,1741974647414,-396.048925,0.00011699,2]
[356151753,1741974647424,-396.048918,0.00011699,2]
[356151754,1741974647434,-163.397605,0.00011699,2]
[356151755,1741974647443,-163.397601,0.00011699,2]
[356151756,1741974647453,-292.64,0.00011794,2]
[356151757,1741974647462,-700.0,0.00011835,2]
[356151758,1741974647471,-562.06575121,0.000119,2]
[356151759,1741974647481,-2498.37,0.00011917,2]
[356151760,1741974647490,-1000.0,0.00011938,2]
[356151761,1741974647500,-250.0,0.00011972,2]
[356151762,1741974647509,-300.0,0.00011998,2]
[356151763,1741974647519,-300.0,0.00011998,2]
[356151764,1741974647528,-300.0,0.00011998,2]
[356151765,1741974647538,-300.0,0.00011998,2]
[356151766,1741974647547,-666.0,0.00011998,2]
[356151767,1741974647557,-733.69524025,0.00011998,2]
[356151768,1741974647567,-300.0,0.00011998,2]
[356151769,1741974647577,-300.0,0.00011998,2]
[356151770,1741974647587,-300.0,0.00011998,2]
[356151771,1741974647596,-300.0,0.00011998,2]
[356151772,1741974647606,-300.0,0.00011998,2]
[356151773,1741974647617,-113501.0,0.00011999,2]
[356151774,1741974647627,-300.0,0.00011999,2]
[356151775,1741974647636,-300.0,0.00011999,2]
[356151776,1741974647646,-300.0,0.00011999,2]
[356151777,1741974647655,-666.0,0.00011999,2]
[356151778,1741974647664,-300.0,0.00011999,2]
[356151779,1741974647674,-300.0,0.00011999,2]
[356151780,1741974647683,-300.0,0.00011999,2]
[356151781,1741974647694,-300.0,0.00011999,2]
[356151782,1741974647703,-151.0,0.00011999,2]
[356151783,1741974647712,-298.5756,0.00011999,2]
[356151784,1741974647722,-151.0,0.00011999,2]
[356151785,1741974647732,-298.5756,0.00011999,2]
[356151786,1741974647741,-300.0,0.00012,2]
[356151787,1741974647751,-151.79033758,0.00012,2]
[356151788,1741974647761,-5000.54442711,0.00012,2]
[356151789,1741974647770,-30000.0,0.00012,2]
[356151790,1741974647779,-30000.0,0.00012,2]
[356151791,1741974647789,-954.40098865,0.00012,2]
[356151792,1741974647799,-2781.46178979,0.00012036,2]
[356151793,1741974647808,-45554.94,0.00012055,2]
[356151794,1741974647818,-151.0,0.00012055,2]
[356151795,1741974647828,-281.869838,0.00012055,2]
[356151796,1741974647837,-281.869838,0.00012055,2]
[356151797,1741974647847,-2498.37,0.00012191,2]
[356151798,1741974647860,-212.29476562,0.00012192,2]
[356151799,1741974647870,-203.0,0.0001223,2]
[356151800,1741974647880,-1009.75,0.00012346,2]
[356151801,1741974647889,-4000.0,0.0001239,7]
[356151802,1741974647900,-358.88,0.00012419,2]
[356151803,1741974647909,-2498.37,0.00012465,2]
[356151804,1741974647919,-295.36968276,0.000125,2]
[356151805,1741974647929,-1313.35,0.00012612,2]
[356151806,1741974647941,-500.0,0.00012657,2]
[356151807,1741974647952,-2498.37,0.00012739,2]
[356151808,1741974647962,-203.0,0.0001285,2]
[356151809,1741974647972,-292.64,0.00012973,2]
[356151810,1741974647982,-364.1435216,0.00012991,2]
[356151811,1741974647992,-150.0,0.00012996,2]
[356151812,1741974648003,-150.0,0.00012996,2]
[356151813,1741974648013,-300.0,0.00012999,2]
[356151814,1741974648023,-300.0,0.00012999,2]
[356151815,1741974648033,-300.0,0.00012999,2]
[356151816,1741974648043,-666.0,0.00012999,2]
[356151817,1741974648052,-300.0,0.00012999,2]
[356151818,1741974648063,-300.0,0.00012999,2]
[356151819,1741974648073,-300.0,0.00012999,2]
[356151820,1741974648083,-4250.34957933,0.00013,2]
[356151821,1741974648093,-3045.55146845,0.00013,2]
[356151822,1741974648103,-5623.6984994,0.00013,2]
[356151823,1741974648113,-700.0,0.00013,4]
[356151824,1741974648123,-1180.0,0.00013,3]
[356151825,1741974648132,-30000.0,0.00013,2]
[356151826,1741974648142,-30000.0,0.00013,2]
[356151827,1741974648152,-151.0,0.00013,2]
[356151828,1741974648164,-281.869838,0.00013,2]
[356151829,1741974648175,-281.869838,0.00013,2]
[356151830,1741974648185,-350.0,0.00013,2]
[356151831,1741974648195,-151.0,0.00013,2]
[356151832,1741974648208,-298.5756,0.00013,2]
[356151833,1741974648218,-151.0,0.00013,2]